bitfinex/quotes_ETHUSD_20250605
["timestamp","ask_amount","ask_price","bid_price","bid_amount"]
[1749154935027,2.2390876,2463.0,2461.1,1.6267]
[1749154935231,13.04,2462.9,2461.0,16.0]
[1749154935431,11.0490876,2463.4,2461.2,16.0]
[1749154935432,13.04,2462.8,2461.2,16.0]
[1749154935859,2.2390876,2463.2,2461.2,16.0]
[1749154936031,13.032,2462.7,2461.2,16.0]
[1749154936233,13.032,2462.6,2461.2,16.0]
[1749154936570,2.2390876,2463.3,2461.2,16.0]
[1749154936571,0.89564031,2463.3,2461.3,0.33916329]
[1749154936826,8.796,2463.7,2462.0,16.0]
[1749154937101,13.032,2463.3,2462.1,0.33905308]
[1749154937311,13.032,2463.3,2461.6,9.8486115]
[1749154937506,13.032,2463.2,2461.6,9.8486115]
[1749154937708,8.796,2463.7,2462.3,9.8486115]
[1749154937910,8.796,2463.7,2461.7,0.98486115]
[1749154937911,13.032,2463.5,2461.7,0.98486115]
[1749154938213,13.032,2463.5,2462.7,0.4598]
[1749154938418,13.032,2463.4,2462.7,0.42363044]
[1749154938600,8.796,2464.6,2462.7,0.42363044]
[1749154938767,13.032,2464.5,2462.7,0.42363044]
[1749154939089,0.89194809,2464.5,2462.7,0.42363044]
[1749154939292,13.024,2464.4,2462.7,0.42363044]
[1749154939866,13.024,2464.3,2462.7,0.42363044]
[1749154940088,13.024,2464.2,2462.7,0.42363044]
[1749154940290,2.2390876,2464.3,2462.7,0.42363044]
[1749154940500,8.796,2464.6,2462.0,9.8486115]
[1749154940698,13.024,2464.2,2462.3,16.0]
[1749154940917,0.89194809,2464.5,2462.1,0.98486115]
[1749154941210,0.89194809,2464.5,2461.6,0.44041469]
[1749154941211,13.024,2464.4,2462.5,16.0]
[1749154941418,13.024,2464.4,2461.7,16.0]
[1749154941636,14.51113728,2464.4,2461.6,9.65318344]
[1749154941818,13.024,2464.3,2462.3,9.8486115]
[1749154942150,0.89254843,2464.5,2461.7,16.0]
[1749154942151,2.37968571,2464.5,2461.7,16.0]
[1749154942437,13.024,2464.4,2462.0,16.0]
[1749154942791,0.89254843,2464.5,2462.7,16.0]
[1749154942994,13.018,2464.4,2462.7,16.0]
[1749154943522,13.018,2464.4,2462.0,16.0]
[1749154943708,1.48713728,2464.2,2461.3,10.28902619]
[1749154944018,15.2570876,2464.4,2459.8,8.787]
[1749154944019,1.48713728,2464.4,2462.1,16.0]
[1749154944180,1.48713728,2464.5,2462.1,16.0]
[1749154944383,8.787,2464.6,2462.8,16.0]
[1749154945025,8.787,2464.6,2461.8,16.0]
[1749154945026,13.018,2464.5,2461.8,16.0]
[1749154945222,14.50513728,2464.5,2462.0,16.0]
[1749154945515,13.9103874,2464.5,2462.1,0.33905308]
[1749154945715,2.37952468,2464.5,2462.1,0.33905308]
[1749154946020,1.48713728,2464.3,2462.1,0.33905308]
[1749154946182,21.8,2464.2,2462.2,16.0]
[1749154946386,13.015,2464.1,2462.4,16.0]
[1749154946992,8.785,2464.2,2462.9,16.0]
[1749154947193,10.27213728,2465.6,2463.6,16.0]
[1749154947421,8.785,2465.6,2464.4,16.0]
[1749154947716,13.015,2466.0,2465.1,16.0]
[1749154948016,8.785,2466.8,2465.1,16.0]
[1749154948222,0.06619605,2466.7,2465.1,16.0]
[1749154948421,5.22381934,2468.5,2465.2,11.36686115]
[1749154948579,0.33551931,2469.0,2467.1,9.8486115]
[1749154948914,1.5354,2469.5,2466.9,16.0]
[1749154949227,1.5354,2469.5,2466.5,16.0]
[1749154949228,13.011,2469.4,2466.5,16.0]
[1749154949419,1.5354,2469.5,2466.7,13.55311772]
[1749154949622,1.5354,2469.5,2467.1,9.8486115]
[1749154949985,13.011,2469.4,2466.7,13.55311772]
[1749154950219,13.011,2469.4,2466.7,12.34631133]
[1749154950513,17.246,2469.4,2466.7,12.34631133]
[1749154950923,1.5354,2469.5,2466.7,12.34631133]
[1749154951120,13.011,2469.3,2466.9,9.8486115]
[1749154951487,13.011,2469.3,2467.2,9.8486115]
[1749154951785,1.6192,2470.1,2466.2,0.53587831]
[1749154951985,13.002,2470.0,2466.8,9.8486115]
[1749154952218,1.6192,2470.1,2466.9,0.98486115]
[1749154952219,13.002,2469.9,2466.9,0.98486115]
[1749154952381,13.002,2469.9,2466.1,0.40866018]
[1749154952585,1.6192,2470.1,2466.6,16.0]
[1749154952924,13.002,2470.0,2467.3,16.0]
[1749154953094,1.6192,2469.9,2466.0,9.8486115]
[1749154953296,0.55,2469.7,2466.1,1.02624662]
[1749154953501,13.002,2469.6,2466.1,1.02624662]
[1749154953693,13.002,2469.6,2466.1,17.02624662]
[1749154954019,1.46212,2469.8,2466.1,17.02624662]
[1749154954020,1.6192,2469.4,2466.6,9.8486115]
[1749154954219,1.6192,2469.4,2466.1,1.02624662]
[1749154954220,1.6192,2469.4,2466.1,10.87485812]
[1749154954405,0.72954754,2469.3,2466.2,1.08748581]
[1749154954608,1.6192,2469.4,2466.9,16.0]
[1749154954806,1.6192,2469.4,2466.6,16.0]
[1749154954807,13.002,2469.2,2466.6,16.0]
[1749154955009,13.002,2469.2,2466.2,17.08748581]
[1749154955398,13.002,2469.2,2466.2,16.16717994]
[1749154955615,13.002,2469.2,2466.2,0.16717994]
[1749154955940,1.6192,2469.4,2466.2,0.16717994]
[1749154955941,1.3002,2469.1,2466.2,0.16717994]
[1749154956139,1.6192,2469.4,2465.5,9.8486115]
[1749154956140,12.996,2469.0,2465.5,9.8486115]
[1749154956347,1.6192,2469.4,2465.5,9.8486115]
[1749154956348,12.996,2468.9,2465.6,16.53587831]
[1749154956504,1.6192,2469.4,2465.6,16.53587831]
[1749154956505,0.34415082,2468.8,2466.7,16.0]
[1749154956709,12.996,2468.7,2466.7,16.0]
[1749154956905,9.1142657,2468.6,2466.2,16.0]
[1749154957143,8.77,2468.6,2466.3,2.58486115]
[1749154957444,0.34434504,2468.5,2466.3,2.58486115]
[1749154957608,12.993,2468.4,2466.0,9.8486115]
[1749154957811,1.6192,2468.3,2464.5,9.8486115]
[1749154958006,1.6192,2468.3,2464.6,0.33870916]
[1749154958267,13.33721485,2468.2,2464.6,0.33870916]
[1749154958571,12.993,2468.1,2464.6,0.33870916]
[1749154958844,12.993,2468.0,2465.7,16.0]
[1749154959008,12.993,2468.0,2465.0,9.8486115]
[1749154959009,0.34429846,2467.9,2465.0,9.8486115]
[1749154959204,1.6192,2468.3,2465.8,0.33854432]
[1749154959546,13.33734978,2468.2,2465.8,0.73630985]
[1749154959749,8.77,2468.6,2465.8,0.73630985]
[1749154959750,12.993,2468.1,2466.5,16.0]
[1749154960053,12.993,2468.1,2465.9,1.64795828]
[1749154960054,12.991,2468.0,2466.2,16.0]
[1749154960261,0.34450295,2468.5,2466.9,16.0]
[1749154960442,8.769,2469.6,2467.6,16.0]
[1749154960739,13.33557424,2469.5,2467.6,16.0]
[1749154960950,8.769,2469.6,2467.8,16.0]
[1749154961249,12.991,2469.6,2468.1,16.0]
[1749154961546,12.991,2469.5,2467.8,26.2479186]
[1749154961784,12.991,2469.5,2467.8,16.3993071]
[1749154962106,12.991,2469.5,2466.8,9.8486115]
[1749154962308,1.2991,2469.4,2466.9,1.32325452]
[1749154962503,8.769,2469.3,2467.0,0.33837965]
[1749154962711,21.76,2469.3,2467.0,0.33837965]
[1749154962909,8.769,2469.3,2466.4,9.38690572]
[1749154963207,12.991,2469.2,2466.5,16.53587831]
[1749154963544,0.34754348,2469.1,2466.5,16.40822118]
[1749154963744,13.33856273,2469.0,2467.1,9.8486115]
[1749154964041,13.33467887,2468.9,2467.8,9.8486115]
[1749154964206,0.34764427,2468.8,2467.9,16.0]
[1749154964402,12.987,2468.9,2467.2,16.0]
[1749154964606,12.987,2468.9,2466.8,0.53587831]
[1749154964914,8.766,2470.8,2466.9,18.40882474]
[1749154965133,8.766,2470.8,2468.6,16.0]
[1749154965134,12.987,2470.7,2468.6,16.0]
[1749154965316,12.987,2470.6,2468.6,16.0]
[1749154965535,0.34778191,2470.5,2468.6,16.0]
[1749154965856,0.34779335,2470.4,2468.6,16.40931593]
[1749154966061,0.34790717,2470.3,2468.7,2.47169219]
[1749154966354,8.766,2470.7,2469.2,16.0]
[1749154966647,12.982,2470.8,2469.2,16.0]
[1749154967074,13.32979364,2470.7,2469.2,16.0]
[1749154967243,13.85813079,2471.1,2469.9,16.0]
[1749154967571,13.85813079,2471.1,2469.9,16.39711147]
[1749154967746,0.82852852,2471.1,2469.9,0.39711147]
[1749154967947,12.982,2471.0,2469.4,16.0]
[1749154968487,12.982,2470.9,2469.6,16.0]
[1749154968648,12.982,2470.8,2469.7,2.58486115]
[1749154968850,12.982,2470.8,2469.8,16.0]
[1749154969179,12.982,2470.8,2468.6,0.40931593]
[1749154969335,12.982,2470.8,2468.2,9.0434017]
[1749154969946,12.982,2470.8,2468.3,16.0]
[1749154970144,12.978,2470.7,2468.4,2.50434017]
[1749154970345,12.978,2470.7,2468.2,9.0434017]
[1749154970578,12.978,2470.7,2467.3,9.8486115]
[1749154970749,14.5023,2470.6,2467.3,9.8486115]
[1749154970947,2.21015042,2471.1,2468.0,9.8486115]
[1749154971146,1.5243,2471.2,2467.2,0.52012524]
[1749154971147,12.978,2471.0,2467.2,0.52012524]
[1749154971344,1.2978,2470.9,2468.0,16.0]
[1749154971744,1.12077122,2470.9,2468.0,16.0]
[1749154971934,1.12077122,2471.1,2468.0,16.0]
[1749154972135,12.977,2471.0,2468.0,16.0]
[1749154972335,1.5243,2471.2,2468.0,16.0]
[1749154972647,12.977,2471.1,2468.0,16.0]
[1749154972958,12.977,2471.1,2468.2,16.0]
[1749154973133,14.09777122,2471.1,2468.1,2.58486115]
[1749154973332,14.09777122,2471.1,2467.9,9.8486115]
[1749154973333,1.12077122,2470.9,2467.9,9.8486115]
[1749154973751,1.5243,2471.2,2468.0,16.0]
[1749154973963,12.977,2470.8,2468.0,16.0]
[1749154974167,8.763,2471.9,2468.7,16.0]
[1749154974168,1.12077122,2471.8,2468.7,16.0]
[1749154974416,12.977,2471.7,2468.7,16.0]
[1749154974613,12.977,2471.7,2468.9,16.0]
[1749154974816,12.977,2471.6,2468.9,16.0]
[1749154975018,0.32810353,2471.5,2468.9,16.0]
[1749154975219,0.32810353,2471.5,2468.9,10.26187317]
[1749154975422,0.32810353,2471.5,2468.9,0.41326167]
[1749154975423,12.977,2471.4,2468.9,0.41326167]
[1749154975714,12.977,2471.4,2468.3,16.005]
[1749154975715,1.12077122,2471.2,2468.3,0.005]
[1749154975918,2.76887122,2471.1,2467.7,9.8486115]
[1749154976278,1.5939,2470.7,2467.7,0.40506944]
[1749154976521,2.71467122,2470.7,2467.3,9.8486115]
[1749154976699,1.12077122,2470.5,2467.4,16.0]
[1749154976904,0.27146712,2470.5,2467.5,2.92317223]
[1749154977221,1.39223834,2470.5,2467.6,0.33829737]
[1749154977382,8.758,2470.4,2467.6,0.33829737]
[1749154977719,1.12077122,2470.1,2467.6,0.33829737]
[1749154977889,1.6509,2469.9,2467.6,0.33829737]
[1749154978097,1.82143834,2469.8,2467.6,0.33829737]
[1749154978297,1.12077122,2469.8,2467.6,0.33829737]
[1749154978503,1.6509,2469.9,2467.8,4.0521626]
[1749154978702,8.758,2470.4,2467.9,16.55]
[1749154979023,12.975,2470.3,2468.6,0.55]
[1749154979231,12.975,2470.3,2468.0,0.33824254]
[1749154979232,12.975,2470.3,2468.3,0.55]
[1749154979389,0.34861129,2470.2,2468.4,2.06014751]
[1749154979723,12.975,2470.3,2468.1,0.55]
[1749154979886,0.3485674,2470.2,2467.9,0.55]
[1749154980087,12.975,2470.3,2467.9,0.55]
[1749154980088,0.34854599,2470.1,2467.9,0.55]
[1749154980323,12.975,2470.3,2467.5,0.40324444]
[1749154980324,1.5519,2469.9,2467.5,0.40324444]
[1749154980525,1.5519,2469.9,2467.4,4.0527549]
[1749154980844,1.4940483,2470.1,2467.4,4.0527549]
[1749154980845,8.758,2470.4,2467.9,0.55]
[1749154981127,0.3508188,2470.3,2469.2,25.8486115]
[1749154981344,0.35110734,2470.2,2468.8,16.0]
[1749154981500,0.35111934,2470.9,2469.8,16.0]
[1749154981701,12.975,2471.0,2469.8,16.0]
[1749154981915,8.758,2471.6,2469.9,2.00489668]
[1749154982110,1.6644,2472.0,2469.9,2.00489668]
[1749154982400,12.975,2471.9,2470.2,20.04816554]
[1749154982600,12.975,2471.9,2470.2,20.04824116]
[1749154982805,1.5107,2472.7,2470.6,16.0]
[1749154982806,12.975,2471.8,2470.6,16.0]
[1749154983136,1.5107,2472.7,2471.5,16.55]
[1749154983432,12.975,2472.6,2471.4,0.55]
[1749154983729,12.975,2472.6,2470.9,4.59709067]
[1749154983932,8.758,2472.9,2470.9,0.55]
[1749154984092,12.975,2472.8,2470.9,0.55]
[1749154984291,12.975,2472.8,2471.1,0.55]
[1749154984812,1.5876,2472.7,2469.9,2.00489668]
[1749154984993,1.12220304,2472.2,2469.0,9.8486115]
[1749154985190,1.12220304,2471.7,2469.1,0.33809185]
[1749154985433,1.5876,2471.8,2469.1,0.33809185]
[1749154985725,12.97,2471.7,2469.1,0.33809185]
[1749154985932,12.97,2471.6,2469.1,0.33809185]
[1749154986116,1.5876,2471.5,2469.1,0.33809185]
[1749154986290,8.755,2471.4,2469.1,0.33809185]
[1749154986499,1.12220304,2471.2,2469.1,0.33809185]
[1749154987000,1.5876,2471.0,2469.1,0.33809185]
[1749154987201,1.5876,2470.9,2469.1,0.33809185]
[1749154987416,1.12220304,2470.6,2468.5,0.41299237]
[1749154987629,3.0816483,2470.7,2468.3,9.8486115]
[1749154987630,1.5876,2470.7,2468.3,9.8486115]
[1749154987944,1.5876,2471.3,2469.4,0.55]
[1749154988094,21.725,2471.4,2469.5,4.04937096]
[1749154988291,21.725,2471.4,2469.8,0.55]
[1749154988616,12.97,2471.3,2469.5,16.55]
[1749154988927,12.97,2471.3,2469.8,0.55]
[1749154989095,8.755,2471.4,2470.2,16.55]
[1749154989294,8.755,2471.4,2470.2,0.55]
[1749154989735,12.97,2471.3,2469.8,0.55]
[1749154989938,12.97,2471.3,2470.0,0.55]
[1749154990121,12.97,2471.3,2470.2,0.55]
[1749154990295,12.968,2471.2,2470.2,0.55]
[1749154991013,12.968,2471.2,2470.4,0.55]
[1749154991245,8.755,2471.4,2470.4,0.55]
[1749154991427,12.968,2471.1,2470.2,2.31939064]
[1749154991640,1.12922675,2471.0,2470.2,2.31939064]
[1749154991942,3.0316483,2471.3,2470.2,1.98804912]
[1749154992095,1.5376,2471.3,2470.2,1.98804912]
[1749154992299,1.5376,2471.0,2470.2,1.7040421]
[1749154992528,1.5376,2471.0,2470.1,1.41100837]
[1749154992529,1.5376,2470.7,2470.1,1.41100837]
[1749154992794,1.4940483,2470.6,2470.1,0.38350026]
[1749154992993,1.5916,2470.4,2470.1,1.03665921]
[1749154993214,1.45606,2470.3,2470.0,0.79857349]
[1749154993457,2.21015042,2470.1,2469.6,0.41211478]
[1749154993658,15.91578737,2470.5,2469.5,0.83985765]
[1749154993659,1.5916,2469.9,2469.5,0.83985765]
[1749154993828,8.754,2469.8,2469.5,0.83985765]
[1749154994955,13.32087234,2469.7,2469.5,0.58841985]
[1749154995158,8.754,2469.8,2469.5,0.58841985]
[1749154995159,8.754,2469.8,2469.6,0.55]
[1749154995355,21.723,2469.8,2469.6,0.55]
[1749154995520,12.969,2469.9,2469.6,0.55]
[1749154995716,9.10644667,2470.9,2469.6,0.55]
[1749154996042,13.3215092,2470.8,2469.7,0.55]
[1749154996227,0.3525092,2470.8,2470.2,9.677611]
[1749154996426,8.754,2472.6,2470.9,0.55]
[1749154996952,8.754,2472.6,2471.6,0.55]
[1749154997114,12.97,2472.5,2471.5,16.55]
[1749154997315,8.754,2472.6,2471.5,16.0]
[1749154997510,8.754,2472.6,2471.7,0.55]
[1749154997752,8.754,2472.6,2472.0,0.55]
[1749154997921,12.97,2472.5,2472.0,1.13841985]
[1749154998114,1.50404628,2474.1,2472.0,17.13841985]
[1749154998315,21.724,2474.0,2472.0,17.13841985]
[1749154998551,21.724,2474.0,2472.1,1.86761199]
[1749154998735,1.5779,2473.9,2472.1,1.86761199]
[1749154998914,1.5779,2473.9,2472.2,0.55]
[1749154999117,1.50404628,2473.8,2472.2,0.55]
[1749154999319,3.08194628,2473.9,2472.2,0.55]
[1749154999813,1.5779,2473.9,2472.2,0.55]
[1749155000016,1.5779,2473.9,2472.3,0.55]
[1749155000516,1.50404628,2473.8,2472.2,0.58841985]
[1749155000751,1.50404628,2473.6,2472.3,0.55]
[1749155000954,1.50404628,2473.7,2472.3,1.13841985]
[1749155001222,1.5779,2473.9,2472.3,1.13841985]
[1749155001525,12.965,2473.6,2472.3,0.58841985]
[1749155001727,12.965,2473.6,2472.3,0.58750224]
[1749155001728,1.50404628,2473.3,2472.3,0.58750224]
[1749155001955,12.962,2473.2,2472.3,0.58750224]
[1749155002259,1.50404628,2473.4,2472.4,0.55]
[1749155002457,1.50404628,2473.7,2472.4,0.55]
[1749155002674,12.962,2473.3,2472.4,0.55]
[1749155002970,12.962,2473.3,2472.0,0.40415694]
[1749155003272,14.46604628,2473.3,2472.4,0.58750224]
[1749155003557,12.962,2473.2,2472.4,0.58750224]
[1749155004453,12.962,2473.1,2472.4,0.58750224]
[1749155005121,12.962,2473.0,2472.5,0.55]
[1749155005366,12.962,2472.9,2472.4,0.58750224]
[1749155005830,1.50404628,2472.9,2472.4,0.58750224]
[1749155006013,12.96,2472.8,2472.4,0.33449035]
[1749155006728,1.50404628,2473.1,2472.4,0.33449035]
[1749155006930,1.50404628,2473.3,2472.4,0.33449035]
[1749155007131,3.12084429,2473.5,2472.4,0.33449035]
[1749155007132,1.50404628,2473.5,2472.4,0.33449035]
[1749155007371,1.50404628,2473.6,2472.4,0.33449035]
[1749155007668,12.96,2473.5,2472.4,0.33449035]
[1749155008245,1.50404628,2473.7,2472.5,0.55]
[1749155008443,12.959,2473.6,2472.5,1.5039]
[1749155008649,0.91069387,2473.9,2472.6,0.55]
[1749155008850,8.754,2474.0,2472.8,0.55]
[1749155009159,8.754,2474.0,2472.8,4.92847648]
[1749155009329,12.959,2473.9,2473.3,16.55]
[1749155009519,12.959,2473.9,2473.2,0.55]
[1749155009716,8.754,2474.0,2473.4,10.43464205]
[1749155009976,1.6253,2475.1,2473.2,0.55]
[1749155009977,1.50404628,2475.6,2473.9,16.0]
[1749155010129,1.50404628,2475.6,2473.8,10.43464205]
[1749155010130,0.12578079,2475.5,2474.4,16.0]
[1749155010332,8.747,2476.0,2474.8,1.5039]
[1749155010533,8.747,2476.0,2474.9,0.55]
[1749155010732,8.747,2476.0,2474.8,17.5039]
[1749155010956,8.747,2476.0,2475.0,16.0]
[1749155011324,1.6253,2475.8,2474.1,1.5039]
[1749155012080,12.954,2475.7,2474.2,0.55]
[1749155012249,8.747,2476.0,2474.4,16.55]
[1749155012579,12.954,2475.9,2474.6,16.55]
[1749155012739,12.954,2475.9,2474.6,18.69846421]
[1749155013436,12.954,2475.8,2474.6,18.69846421]
[1749155013642,8.747,2476.0,2474.7,0.55]
[1749155013844,8.744,2476.1,2474.7,0.55]
[1749155014151,3.3467275,2477.6,2475.0,10.43464205]
[1749155014152,0.09214745,2477.3,2475.0,10.43464205]
[1749155014466,0.09214745,2477.3,2475.1,1.59346421]
[1749155014648,0.34941068,2477.2,2475.3,16.55]
[1749155014983,0.09214745,2477.3,2475.7,16.55]
[1749155015281,12.951,2477.1,2475.7,16.55]
[1749155015438,0.09983812,2477.0,2475.7,16.55]
[1749155015637,0.09983812,2477.0,2476.1,16.0]
[1749155015841,0.09214745,2477.3,2476.1,16.4104968]
[1749155015842,12.951,2476.9,2476.1,16.4104968]
[1749155016043,12.951,2476.9,2475.2,16.55]
[1749155016280,12.951,2476.8,2475.5,0.88721777]
[1749155016483,12.951,2476.8,2475.7,0.55]
[1749155016687,12.951,2476.8,2475.6,0.55]
[1749155016846,0.09214745,2477.3,2475.8,16.55]
[1749155016847,12.951,2476.7,2475.8,16.55]
[1749155017050,0.09214745,2477.3,2476.0,16.0]
[1749155017245,12.946,2477.2,2476.1,0.55]
[1749155017754,12.946,2477.2,2476.0,16.0]
[1749155017975,12.946,2477.2,2476.1,0.55]
[1749155018287,0.09214745,2477.3,2476.1,0.55]
[1749155018484,12.946,2477.1,2476.3,0.55]
[1749155018648,0.09214745,2477.3,2476.2,16.55]
[1749155018843,12.946,2477.2,2476.3,1.5274]
[1749155019280,0.09214745,2477.3,2476.4,0.55]
[1749155019281,12.946,2477.1,2476.4,0.55]
[1749155019491,10.32964745,2478.0,2476.4,0.55]
[1749155019676,12.946,2477.9,2476.6,0.55]
[1749155019856,12.946,2477.9,2476.6,16.55]
[1749155020274,12.943,2477.8,2476.6,16.55]
[1749155020583,12.943,2477.7,2476.6,16.55]
[1749155020784,12.943,2477.6,2476.6,16.55]
[1749155020984,12.943,2477.5,2476.9,0.55]
[1749155021290,8.736,2478.5,2476.9,0.55]
[1749155021291,12.943,2477.4,2476.9,0.55]
[1749155021588,12.943,2477.3,2476.3,1.5274]
[1749155021807,8.736,2478.5,2476.3,1.5274]
[1749155021950,12.943,2478.4,2476.4,0.33709522]
[1749155022156,12.943,2478.4,2476.5,0.55]
[1749155022489,1.6336,2478.3,2476.6,0.33706799]
[1749155022789,8.736,2478.5,2476.9,0.55]
[1749155022955,8.736,2478.5,2477.3,16.55]
[1749155023151,1.4966,2478.9,2477.3,16.55]
[1749155023407,8.734,2479.0,2477.5,16.55]
[1749155023614,8.734,2479.0,2477.7,0.55]
[1749155023768,8.734,2479.0,2477.9,16.0]
[1749155023955,8.734,2479.0,2477.7,0.55]
[1749155024352,12.94,2478.9,2477.7,0.55]
[1749155024574,12.94,2478.9,2477.8,0.22164]
[1749155024897,12.94,2478.9,2477.6,1.6664]
[1749155025195,12.94,2478.8,2477.7,0.55]
[1749155025575,8.734,2479.0,2477.7,11.3850462]
[1749155025783,8.734,2479.0,2477.9,0.55]
[1749155025989,8.734,2479.0,2478.0,0.55]
[1749155025990,12.936,2478.9,2478.0,0.55]
[1749155026297,8.734,2479.0,2478.2,2.1534]
[1749155026454,12.936,2478.8,2478.2,2.1534]
[1749155026654,12.936,2478.8,2478.2,1.6034]
[1749155027677,12.936,2478.8,2477.7,1.92170415]
[1749155027879,12.936,2478.8,2477.7,1.5213]
[1749155028095,12.936,2478.8,2477.2,1.5213]
[1749155028294,8.734,2479.0,2477.2,1.5213]
[1749155028476,12.936,2478.9,2477.2,1.85828635]
[1749155028790,9.76568,2479.0,2477.2,2.26737339]
[1749155028791,12.936,2478.8,2477.2,2.26737339]
[1749155028956,12.936,2478.8,2477.2,18.26737339]
[1749155029159,12.936,2478.8,2477.2,2.26737339]
[1749155029370,0.34426325,2478.7,2477.2,2.26737339]
[1749155029597,0.3456214,2478.6,2477.2,2.49411073]
[1749155029757,13.27967736,2478.5,2477.3,0.55]
[1749155030098,8.734,2479.0,2477.9,10.43464205]
[1749155030269,0.35196985,2478.9,2478.3,10.43464205]
[1749155030468,12.934,2478.8,2478.4,16.55]
[1749155030680,8.73,2479.9,2478.8,16.55]
[1749155030995,13.28607553,2479.8,2479.0,16.0]
[1749155031191,13.27607553,2479.7,2478.9,0.55]
[1749155031393,13.27607553,2479.6,2478.8,20.58417924]
[1749155031694,12.912,2479.5,2478.8,0.55]
[1749155031857,12.912,2479.5,2479.0,0.55]
[1749155032192,0.35207184,2479.4,2478.9,1.81204]
[1749155032392,0.35207184,2479.3,2478.7,1.5704]
[1749155032578,13.22307184,2479.2,2478.8,0.55]
[1749155032765,13.22319927,2479.1,2478.8,0.55]
[1749155032966,12.853,2479.1,2479.0,0.55]
[1749155033169,12.853,2479.2,2479.1,0.55]
[1749155033357,8.73,2480.7,2479.2,16.55]
[1749155033559,12.833,2480.6,2479.3,0.33670092]
[1749155033958,13.18544246,2480.6,2479.3,0.33670092]
[1749155034158,0.35245631,2480.5,2479.3,0.33670092]
[1749155034410,0.35245631,2480.4,2479.3,0.33670092]
[1749155034584,0.70488899,2480.3,2479.3,0.33670092]
[1749155034767,13.18544246,2480.6,2479.3,0.33670092]
[1749155034966,0.35237004,2480.5,2479.3,0.33670092]
[1749155035167,13.18544246,2480.6,2479.3,0.33670092]
[1749155035168,0.35236775,2480.4,2479.3,0.33670092]
[1749155035398,0.35237111,2480.3,2479.3,0.33670092]
[1749155035698,13.18544246,2480.6,2478.8,0.41360957]
[1749155035915,13.18544246,2480.6,2478.9,2.13515621]
[1749155036214,0.70467147,2480.5,2478.9,0.33675525]
[1749155036418,0.70464115,2480.4,2478.9,0.33675525]
[1749155036591,13.43111302,2480.3,2478.9,0.33675525]
[1749155036796,0.70305303,2480.2,2478.9,0.33675525]
[1749155036977,12.728,2480.3,2478.9,0.33675525]
[1749155037317,12.7,2480.2,2478.9,0.33675525]
[1749155037460,0.06374246,2480.6,2479.0,0.55]
[1749155037876,0.35165272,2480.5,2479.3,16.55]
[1749155038168,0.35166601,2480.4,2479.3,0.55]
[1749155038362,0.35167286,2480.3,2479.1,1.5719]
[1749155038602,0.35166732,2480.2,2479.2,0.55]
[1749155038814,12.666,2480.2,2479.3,0.21219]
[1749155039018,12.666,2480.2,2479.1,1.5719]
[1749155039217,0.35166225,2480.1,2479.1,1.5719]
[1749155039428,0.06374246,2480.6,2479.2,0.55]
[1749155039564,0.35168845,2480.5,2479.4,16.55]
[1749155039769,0.06374246,2480.6,2479.4,16.55]
[1749155039770,12.96768845,2480.4,2479.4,16.55]
[1749155039981,0.06374246,2480.6,2479.3,14.46795863]
[1749155039982,12.616,2480.3,2479.6,16.55]
[1749155040181,0.35177805,2480.2,2479.6,16.55]
[1749155040384,0.3518084,2480.1,2479.6,16.55]
[1749155040565,12.616,2480.3,2479.6,16.55]
[1749155040566,0.35181315,2480.0,2479.6,16.55]
[1749155040768,12.93580847,2479.9,2479.6,16.55]
[1749155040975,12.584,2479.9,2479.7,2.51517959]
[1749155041194,12.584,2479.9,2479.8,16.0]
[1749155041390,12.93580625,2479.9,2479.7,0.55]
[1749155041597,0.35180625,2479.8,2479.4,16.0]
[1749155041797,0.3506556,2479.7,2479.4,16.0]
[1749155042045,0.35059463,2479.6,2479.1,1.90862809]
[1749155042245,12.584,2479.9,2479.2,17.79086281]
[1749155042451,8.722,2480.4,2479.2,0.3367145]
[1749155042663,8.722,2480.4,2479.3,0.33670092]
[1749155042820,0.3506235,2480.3,2479.4,16.0]
[1749155043011,8.722,2480.4,2479.5,0.55]
[1749155043224,0.35063683,2480.3,2479.6,0.33666019]
[1749155043441,0.35066917,2480.2,2479.6,18.02532621]
[1749155043623,0.35069774,2480.1,2479.9,1.5431]
[1749155043824,8.722,2481.7,2480.2,0.55]
[1749155044023,8.722,2481.7,2480.6,16.55]
[1749155044024,0.35084458,2481.6,2480.6,16.55]
[1749155044252,0.35084458,2481.6,2480.5,10.43464205]
[1749155044253,12.81285604,2481.5,2480.8,16.55]
[1749155044412,12.459,2481.5,2480.9,10.43464205]
[1749155044752,12.459,2481.5,2481.4,16.55]
[1749155044936,12.459,2481.5,2481.1,1.5984]
[1749155045110,4.1098,2483.2,2481.2,0.55]
[1749155045310,5.39288,2483.2,2481.3,0.21484]
[1749155045510,1.5111,2483.1,2481.3,0.21484]
[1749155045779,5.39288,2483.2,2481.0,16.0]
[1749155045780,3.9846,2483.0,2481.0,16.0]
[1749155045913,3.9846,2482.8,2480.8,16.0]
[1749155046314,1.5111,2482.1,2480.0,1.6106]
[1749155046543,3.9846,2481.8,2479.9,0.33661946]
[1749155046718,3.9846,2481.6,2479.9,0.33661946]
[1749155047059,3.9846,2481.4,2479.9,0.17972602]
[1749155047261,0.55,2481.1,2479.9,0.06700072]